[Event "Titled Tuesday Blitz April 19 Late 2022"]
[White "Szpar, Milosz"]
[Black "Moskalenko, Alexander"]
[WhiteFideId "1184989"]
[BlackFideId "4155351"]
[WhiteElo "2447"]
[BlackElo "2434"]
[Result "1-0"]
[Round "05"]
[TimeControl "180+1"]
[Date "2022.04.19"]
[WhiteClock "0:01:58"]
[BlackClock "0:00:02"]

1. e4 {[%clk 0:03:00]}  c5 {[%clk 0:02:26]} 2. Nc3 {[%clk 0:02:56]}  e6 {[%clk 0:02:26]} 3. Nf3 {[%clk 0:02:51]}  a6 {[%clk 0:02:26]} 4. g3 {[%clk 0:02:50]}  b5 {[%clk 0:02:26]} 5. Bg2 {[%clk 0:02:47]}  Bb7 {[%clk 0:02:26]} 6. d4 {[%clk 0:02:46]}  cxd4 {[%clk 0:02:26]} 7. Nxd4 {[%clk 0:02:46]}  Nf6 {[%clk 0:02:26]} 8. Qe2 {[%clk 0:02:41]}  b4 {[%clk 0:02:18]} 9. Na4 {[%clk 0:02:36]}  Nc6 {[%clk 0:02:18]} 10. Be3 {[%clk 0:02:34]}  Qa5 {[%clk 0:02:12]} 11. b3 {[%clk 0:02:33]}  Nxd4 {[%clk 0:02:12]} 12. Bxd4 {[%clk 0:02:34]}  Bc6 {[%clk 0:02:12]} 13. Nb6 {[%clk 0:02:34]}  Bc5 {[%clk 0:02:01]} 14. Nc4 {[%clk 0:02:27]}  Qb5 {[%clk 0:00:47]} 15. Bb2 {[%clk 0:02:26]}  O-O {[%clk 0:00:44]} 16. O-O {[%clk 0:02:26]}  Be7 {[%clk 0:00:39]} 17. e5 {[%clk 0:02:24]}  Nd5 {[%clk 0:00:37]} 18. Qd3 {[%clk 0:02:24]}  Nb6 {[%clk 0:00:22]} 19. Bxc6 {[%clk 0:02:17]}  Qxc6 {[%clk 0:00:23]} 20. Nxb6 {[%clk 0:02:18]}  Qxb6 {[%clk 0:00:24]} 21. Qxd7 {[%clk 0:02:19]}  Ra7 {[%clk 0:00:22]} 22. Qd3 {[%clk 0:02:19]}  Qc6 {[%clk 0:00:21]} 23. Rfd1 {[%clk 0:02:16]}  a5 {[%clk 0:00:21]} 24. Rd2 {[%clk 0:02:16]}  a4 {[%clk 0:00:21]} 25. Rad1 {[%clk 0:02:17]}  axb3 {[%clk 0:00:19]} 26. axb3 {[%clk 0:02:18]}  Ra2 {[%clk 0:00:19]} 27. Bd4 {[%clk 0:02:18]}  h5 {[%clk 0:00:18]} 28. h4 {[%clk 0:02:17]}  Rfa8 {[%clk 0:00:17]} 29. Qe2 {[%clk 0:02:16]}  g6 {[%clk 0:00:14]} 30. Be3 {[%clk 0:02:16]}  Kg7 {[%clk 0:00:13]} 31. Bg5 {[%clk 0:02:16]}  Bxg5 {[%clk 0:00:13]} 32. hxg5 {[%clk 0:02:16]}  Qc3 {[%clk 0:00:13]} 33. Qe4 {[%clk 0:02:10]}  R8a5 {[%clk 0:00:13]} 34. Re2 {[%clk 0:02:07]}  Rc5 {[%clk 0:00:10]} 35. Qf4 {[%clk 0:02:03]}  Rc8 {[%clk 0:00:05]} 36. Qf6+ {[%clk 0:02:04]}  Kg8 {[%clk 0:00:05]} 37. Rd7 {[%clk 0:02:05]}  Rf8 {[%clk 0:00:05]} 38. Red2 {[%clk 0:01:58]}  Rxc2 {[%clk 0:00:04]} 39. Rxf7 {[%clk 0:01:58]}  Rc1+ {[%clk 0:00:03]} 40. Kh2 {[%clk 0:01:58]}  Rh1+ {[%clk 0:00:01]} 41. Kxh1 {[%clk 0:01:58]}  Qc6+ {[%clk 0:00:01]} 42. Kh2 {[%clk 0:01:58]}  Rxf7 {[%clk 0:00:02]} 43. Rd8+ {[%clk 0:01:58]} 1-0


[Site "https://www.chess.com"]

[Event "Titled Tuesday Blitz April 19 Late 2022"]
[White "Tregubov, Pavel V."]
[Black "Przybylski, Wojciech"]
[WhiteFideId "4115341"]
[BlackFideId "1117599"]
[WhiteElo "2341"]
[BlackElo "2133"]
[Result "1-0"]
[Round "05"]
[TimeControl "180+1"]
[Date "2022.04.19"]
[WhiteClock "0:00:52"]
[BlackClock "0:00:02"]

1. e4 {[%clk 0:02:53]}  e5 {[%clk 0:02:59]} 2. Nf3 {[%clk 0:02:46]}  Nc6 {[%clk 0:02:59]} 3. Bb5 {[%clk 0:02:46]}  Nf6 {[%clk 0:02:59]} 4. d4 {[%clk 0:02:45]}  Nxe4 {[%clk 0:02:54]} 5. dxe5 {[%clk 0:02:40]}  d5 {[%clk 0:02:46]} 6. O-O {[%clk 0:02:25]}  Bc5 {[%clk 0:02:32]} 7. c4 {[%clk 0:02:21]}  dxc4 {[%clk 0:02:20]} 8. Qxd8+ {[%clk 0:02:19]}  Kxd8 {[%clk 0:02:19]} 9. Bxc4 {[%clk 0:02:14]}  f5 {[%clk 0:01:41]} 10. exf6 {[%clk 0:02:11]}  Nxf6 {[%clk 0:01:41]} 11. Bf4 {[%clk 0:02:04]}  Bf5 {[%clk 0:01:29]} 12. Nc3 {[%clk 0:02:03]}  a6 {[%clk 0:01:22]} 13. Rad1+ {[%clk 0:01:43]}  Kc8 {[%clk 0:01:22]} 14. Nd5 {[%clk 0:01:43]}  b5 {[%clk 0:00:52]} 15. Nxf6 {[%clk 0:01:36]}  gxf6 {[%clk 0:00:50]} 16. Bd5 {[%clk 0:01:35]}  Kb7 {[%clk 0:00:10]} 17. Rc1 {[%clk 0:01:35]}  Bd3 {[%clk 0:00:10]} 18. Rxc5 {[%clk 0:01:30]}  Bxf1 {[%clk 0:00:10]} 19. Kxf1 {[%clk 0:01:29]}  Rad8 {[%clk 0:00:09]} 20. Bxc6+ {[%clk 0:01:22]}  Kb6 {[%clk 0:00:09]} 21. Be3 {[%clk 0:01:20]}  Rd1+ {[%clk 0:00:05]} 22. Ke2 {[%clk 0:01:20]}  Rd6 {[%clk 0:00:05]} 23. Rc3+ {[%clk 0:01:13]}  Ka5 {[%clk 0:00:04]} 24. Ra3+ {[%clk 0:01:00]}  Kb4 {[%clk 0:00:04]} 25. Rb3+ {[%clk 0:00:59]}  Ka4 {[%clk 0:00:02]} 26. Bc5 {[%clk 0:00:54]}  Re6+ {[%clk 0:00:02]} 27. Kf1 {[%clk 0:00:52]} 1-0


[Site "https://www.chess.com"]

[Event "Titled Tuesday Blitz April 19 Late 2022"]
[White "Tristan, Leonardo"]
[Black "Sirosh, Ilja"]
[WhiteFideId "113816"]
[BlackFideId "4500458"]
[WhiteElo "2404"]
[BlackElo "2241"]
[Result "0-1"]
[Round "05"]
[TimeControl "180+1"]
[Date "2022.04.19"]
[WhiteClock "0:00:25"]
[BlackClock "0:00:15"]

1. d4 {[%clk 0:03:00]}  Nf6 {[%clk 0:02:59]} 2. Nf3 {[%clk 0:03:01]}  g6 {[%clk 0:02:59]} 3. Bf4 {[%clk 0:03:01]}  Bg7 {[%clk 0:02:58]} 4. e3 {[%clk 0:03:01]}  O-O {[%clk 0:02:55]} 5. Be2 {[%clk 0:03:02]}  d6 {[%clk 0:02:56]} 6. O-O {[%clk 0:03:02]}  c5 {[%clk 0:02:56]} 7. c3 {[%clk 0:03:02]}  b6 {[%clk 0:02:56]} 8. h3 {[%clk 0:03:01]}  Bb7 {[%clk 0:02:55]} 9. Bh2 {[%clk 0:03:02]}  Nbd7 {[%clk 0:02:53]} 10. Nbd2 {[%clk 0:03:01]}  a6 {[%clk 0:02:52]} 11. a4 {[%clk 0:03:01]}  Ra7 {[%clk 0:02:43]} 12. Qb3 {[%clk 0:03:01]}  Qa8 {[%clk 0:02:42]} 13. Rfd1 {[%clk 0:03:02]}  Ne4 {[%clk 0:02:28]} 14. Nxe4 {[%clk 0:03:01]}  Bxe4 {[%clk 0:02:29]} 15. d5 {[%clk 0:03:02]}  Bxf3 {[%clk 0:02:20]} 16. Bxf3 {[%clk 0:03:03]}  Rb8 {[%clk 0:02:16]} 17. Ra3 {[%clk 0:03:01]}  b5 {[%clk 0:02:15]} 18. axb5 {[%clk 0:03:01]}  axb5 {[%clk 0:02:15]} 19. Rda1 {[%clk 0:03:01]}  Rxa3 {[%clk 0:02:10]} 20. Rxa3 {[%clk 0:03:01]}  Qb7 {[%clk 0:02:10]} 21. Qa2 {[%clk 0:03:02]}  b4 {[%clk 0:02:03]} 22. Ra7 {[%clk 0:03:02]}  Qc8 {[%clk 0:02:03]} 23. c4 {[%clk 0:02:06]}  Bf6 {[%clk 0:01:35]} 24. Bg4 {[%clk 0:02:01]}  b3 {[%clk 0:00:51]} 25. Qa3 {[%clk 0:01:28]}  Rb7 {[%clk 0:00:14]} 26. Qa6 {[%clk 0:01:27]}  Rxa7 {[%clk 0:00:12]} 27. Qxc8+ {[%clk 0:01:27]}  Kg7 {[%clk 0:00:13]} 28. Bxd6 {[%clk 0:01:08]}  exd6 {[%clk 0:00:14]} 29. Bxd7 {[%clk 0:01:07]}  Bxb2 {[%clk 0:00:14]} 30. Qb8 {[%clk 0:01:05]}  Ra1+ {[%clk 0:00:14]} 31. Kh2 {[%clk 0:01:04]}  Be5+ {[%clk 0:00:14]} 32. f4 {[%clk 0:01:00]}  b2 {[%clk 0:00:15]} 33. fxe5 {[%clk 0:00:59]}  b1=Q {[%clk 0:00:15]} 34. Qxb1 {[%clk 0:01:00]}  Rxb1 {[%clk 0:00:16]} 35. exd6 {[%clk 0:01:00]}  Re1 {[%clk 0:00:12]} 36. Kg3 {[%clk 0:00:38]}  Rxe3+ {[%clk 0:00:11]} 37. Kf4 {[%clk 0:00:39]}  Re1 {[%clk 0:00:11]} 38. g4 {[%clk 0:00:31]}  h6 {[%clk 0:00:10]} 39. h4 {[%clk 0:00:31]}  Rf1+ {[%clk 0:00:08]} 40. Ke4 {[%clk 0:00:30]}  Kf6 {[%clk 0:00:08]} 41. Bb5 {[%clk 0:00:22]}  g5 {[%clk 0:00:08]} 42. hxg5+ {[%clk 0:00:18]}  hxg5 {[%clk 0:00:09]} 43. Bd7 {[%clk 0:00:18]}  Rf4+ {[%clk 0:00:09]} 44. Kd3 {[%clk 0:00:19]}  Rd4+ {[%clk 0:00:09]} 45. Kc3 {[%clk 0:00:19]}  Ke5 {[%clk 0:00:09]} 46. Be8 {[%clk 0:00:17]}  Kxd6 {[%clk 0:00:10]} 47. Bxf7 {[%clk 0:00:17]}  Rxg4 {[%clk 0:00:10]} 48. Be6 {[%clk 0:00:18]}  Rf4 {[%clk 0:00:10]} 49. Kd3 {[%clk 0:00:18]}  Ke5 {[%clk 0:00:08]} 50. Bc8 {[%clk 0:00:16]}  Rd4+ {[%clk 0:00:09]} 51. Kc3 {[%clk 0:00:16]}  g4 {[%clk 0:00:09]} 52. Kb3 {[%clk 0:00:15]}  g3 {[%clk 0:00:10]} 53. Bh3 {[%clk 0:00:16]}  Kd6 {[%clk 0:00:09]} 54. Ka4 {[%clk 0:00:16]}  Rd2 {[%clk 0:00:09]} 55. Kb5 {[%clk 0:00:17]}  g2 {[%clk 0:00:09]} 56. Bxg2 {[%clk 0:00:17]}  Rxg2 {[%clk 0:00:10]} 57. Kb6 {[%clk 0:00:18]}  Rd2 {[%clk 0:00:10]} 58. Ka7 {[%clk 0:00:19]}  Rc2 {[%clk 0:00:10]} 59. Kb6 {[%clk 0:00:19]}  Rxc4 {[%clk 0:00:11]} 60. Kb5 {[%clk 0:00:20]}  Rd4 {[%clk 0:00:12]} 61. Ka5 {[%clk 0:00:21]}  Kxd5 {[%clk 0:00:12]} 62. Kb5 {[%clk 0:00:22]}  c4 {[%clk 0:00:13]} 63. Kb4 {[%clk 0:00:22]}  Rd3 {[%clk 0:00:13]} 64. Ka4 {[%clk 0:00:23]}  c3 {[%clk 0:00:13]} 65. Kb4 {[%clk 0:00:24]}  Kd4 {[%clk 0:00:14]} 66. Kb3 {[%clk 0:00:25]}  Rd2 {[%clk 0:00:14]} 67. Ka3 {[%clk 0:00:25]}  Kc4 {[%clk 0:00:14]} 68. Ka4 {[%clk 0:00:25]}  Ra2# {[%clk 0:00:15]} 0-1


[Site "https://www.chess.com"]

[Event "Titled Tuesday Blitz April 19 Late 2022"]
[White "Vasquez Schroeder, Rodrigo"]
[Black "Svane, Rasmus"]
[WhiteFideId "3400042"]
[BlackFideId "4657101"]
[WhiteElo "2561"]
[BlackElo "2645"]
[Result "1-0"]
[Round "05"]
[TimeControl "180+1"]
[Date "2022.04.19"]
[WhiteClock "0:00:11"]
[BlackClock "0:00:01"]

1. e4 {[%clk 0:03:00]}  c6 {[%clk 0:02:59]} 2. d4 {[%clk 0:02:56]}  d5 {[%clk 0:03:00]} 3. exd5 {[%clk 0:02:55]}  cxd5 {[%clk 0:03:01]} 4. Bd3 {[%clk 0:02:55]}  Nc6 {[%clk 0:03:01]} 5. c3 {[%clk 0:02:54]}  Nf6 {[%clk 0:03:01]} 6. h3 {[%clk 0:02:54]}  e5 {[%clk 0:03:01]} 7. dxe5 {[%clk 0:02:55]}  Nxe5 {[%clk 0:03:02]} 8. Nf3 {[%clk 0:02:55]}  Nxd3+ {[%clk 0:03:03]} 9. Qxd3 {[%clk 0:02:56]}  Bd6 {[%clk 0:03:03]} 10. O-O {[%clk 0:02:55]}  O-O {[%clk 0:03:04]} 11. Be3 {[%clk 0:02:51]}  Re8 {[%clk 0:02:57]} 12. Nbd2 {[%clk 0:02:49]}  Ne4 {[%clk 0:02:51]} 13. Rfe1 {[%clk 0:02:48]}  Bf5 {[%clk 0:02:50]} 14. Qb5 {[%clk 0:02:47]}  Nxd2 {[%clk 0:01:54]} 15. Nxd2 {[%clk 0:02:38]}  Qd7 {[%clk 0:01:36]} 16. Qxd7 {[%clk 0:02:32]}  Bxd7 {[%clk 0:01:37]} 17. Nf3 {[%clk 0:02:31]}  a6 {[%clk 0:01:34]} 18. Rad1 {[%clk 0:02:29]}  Bc6 {[%clk 0:01:31]} 19. Nd4 {[%clk 0:02:26]}  Ba4 {[%clk 0:01:31]} 20. b3 {[%clk 0:02:22]}  Bd7 {[%clk 0:01:29]} 21. Nf3 {[%clk 0:02:18]}  Bc6 {[%clk 0:01:28]} 22. Bd4 {[%clk 0:02:18]}  f6 {[%clk 0:01:26]} 23. Nh4 {[%clk 0:02:02]}  a5 {[%clk 0:01:18]} 24. Nf5 {[%clk 0:02:01]}  Bf8 {[%clk 0:01:18]} 25. a4 {[%clk 0:01:54]}  Rxe1+ {[%clk 0:01:11]} 26. Rxe1 {[%clk 0:01:54]}  Kf7 {[%clk 0:01:07]} 27. Bb6 {[%clk 0:01:47]}  Bd7 {[%clk 0:01:05]} 28. Nd4 {[%clk 0:01:41]}  Bd6 {[%clk 0:01:05]} 29. Nf3 {[%clk 0:01:33]}  Ra6 {[%clk 0:01:01]} 30. Bd4 {[%clk 0:01:32]}  b5 {[%clk 0:01:00]} 31. axb5 {[%clk 0:01:32]}  Bxb5 {[%clk 0:01:01]} 32. Ra1 {[%clk 0:01:28]}  a4 {[%clk 0:01:01]} 33. bxa4 {[%clk 0:01:27]}  Rxa4 {[%clk 0:01:01]} 34. Rb1 {[%clk 0:01:27]}  Ba6 {[%clk 0:00:46]} 35. g4 {[%clk 0:01:20]}  Ke7 {[%clk 0:00:38]} 36. Nh4 {[%clk 0:01:13]}  g6 {[%clk 0:00:38]} 37. Nf3 {[%clk 0:01:12]}  Bc8 {[%clk 0:00:29]} 38. Rb6 {[%clk 0:01:09]}  Ra6 {[%clk 0:00:28]} 39. Rb5 {[%clk 0:01:06]}  Ke6 {[%clk 0:00:24]} 40. Kg2 {[%clk 0:01:04]}  Bd7 {[%clk 0:00:23]} 41. Rb7 {[%clk 0:01:03]}  g5 {[%clk 0:00:20]} 42. Be3 {[%clk 0:00:51]}  Ke7 {[%clk 0:00:11]} 43. Nd4 {[%clk 0:00:49]}  Kd8 {[%clk 0:00:12]} 44. Nb5 {[%clk 0:00:40]}  Be5 {[%clk 0:00:09]} 45. Nd4 {[%clk 0:00:40]}  Ra8 {[%clk 0:00:08]} 46. Rb6 {[%clk 0:00:35]}  Rc8 {[%clk 0:00:08]} 47. Bd2 {[%clk 0:00:32]}  Ke7 {[%clk 0:00:07]} 48. Rb7 {[%clk 0:00:28]}  Rc7 {[%clk 0:00:07]} 49. Rxc7 {[%clk 0:00:25]}  Bxc7 {[%clk 0:00:07]} 50. Be3 {[%clk 0:00:26]}  Kf7 {[%clk 0:00:06]} 51. Ne2 {[%clk 0:00:25]}  Kg6 {[%clk 0:00:06]} 52. Bd4 {[%clk 0:00:23]}  Bd8 {[%clk 0:00:04]} 53. f4 {[%clk 0:00:22]}  Bc7 {[%clk 0:00:05]} 54. f5+ {[%clk 0:00:22]}  Kf7 {[%clk 0:00:05]} 55. Kf3 {[%clk 0:00:20]}  h5 {[%clk 0:00:05]} 56. Nc1 {[%clk 0:00:19]}  h4 {[%clk 0:00:04]} 57. Nd3 {[%clk 0:00:18]}  Bb5 {[%clk 0:00:04]} 58. Nb4 {[%clk 0:00:16]}  Bc4 {[%clk 0:00:05]} 59. Nc6 {[%clk 0:00:16]}  Bf1 {[%clk 0:00:04]} 60. Nb4 {[%clk 0:00:15]}  Bxh3 {[%clk 0:00:04]} 61. Nxd5 {[%clk 0:00:15]}  Bd8 {[%clk 0:00:05]} 62. Ne3 {[%clk 0:00:14]}  Bc7 {[%clk 0:00:04]} 63. Nd5 {[%clk 0:00:13]}  Bd8 {[%clk 0:00:04]} 64. c4 {[%clk 0:00:12]}  Bf1 {[%clk 0:00:03]} 65. Ne3 {[%clk 0:00:13]}  Bd3 {[%clk 0:00:03]} 66. c5 {[%clk 0:00:12]}  Bb5 {[%clk 0:00:03]} 67. Kg2 {[%clk 0:00:11]}  Bc6+ {[%clk 0:00:04]} 68. Kh3 {[%clk 0:00:12]}  Be4 {[%clk 0:00:03]} 69. Nc4 {[%clk 0:00:12]}  Ke7 {[%clk 0:00:03]} 70. Nd6 {[%clk 0:00:12]}  Bd5 {[%clk 0:00:04]} 71. Nc8+ {[%clk 0:00:12]}  Ke8 {[%clk 0:00:03]} 72. Nb6 {[%clk 0:00:11]}  Bc6 {[%clk 0:00:04]} 73. Nc4 {[%clk 0:00:12]}  Be7 {[%clk 0:00:04]} 74. Nd6+ {[%clk 0:00:12]}  Kd7 {[%clk 0:00:05]} 75. Nc4 {[%clk 0:00:12]}  Bd5 {[%clk 0:00:05]} 76. Nb6+ {[%clk 0:00:12]}  Kc6 {[%clk 0:00:05]} 77. Nc8 {[%clk 0:00:11]}  Bd8 {[%clk 0:00:05]} 78. Nd6 {[%clk 0:00:11]}  Bf3 {[%clk 0:00:04]} 79. Ne8 {[%clk 0:00:10]}  Bd5 {[%clk 0:00:02]} 80. Bxf6 {[%clk 0:00:10]}  Bxf6 {[%clk 0:00:01]} 81. Nxf6 {[%clk 0:00:11]}  Bc4 {[%clk 0:00:01]} 82. Ne4 {[%clk 0:00:11]} 1-0


[Site "https://www.chess.com"]

[Event "Titled Tuesday Blitz April 19 Late 2022"]
[White "Veiga, Emerson de Sousa"]
[Black "Rosenberg, Evan S"]
[WhiteFideId "2151898"]
[BlackFideId "2019299"]
[WhiteElo "2034"]
[BlackElo "2351"]
[Result "1/2-1/2"]
[Round "05"]
[TimeControl "180+1"]
[Date "2022.04.19"]
[WhiteClock "0:00:05"]
[BlackClock "0:00:03"]

1. e4 {[%clk 0:03:00]}  e6 {[%clk 0:02:58]} 2. d4 {[%clk 0:02:59]}  d5 {[%clk 0:02:59]} 3. Nc3 {[%clk 0:02:58]}  Bb4 {[%clk 0:02:52]} 4. Ne2 {[%clk 0:02:57]}  Nf6 {[%clk 0:02:49]} 5. e5 {[%clk 0:02:53]}  Ne4 {[%clk 0:02:48]} 6. a3 {[%clk 0:02:52]}  Bxc3+ {[%clk 0:02:43]} 7. bxc3 {[%clk 0:02:42]}  c5 {[%clk 0:02:27]} 8. f3 {[%clk 0:02:24]}  cxd4 {[%clk 0:01:56]} 9. fxe4 {[%clk 0:02:23]}  Qh4+ {[%clk 0:01:49]} 10. Ng3 {[%clk 0:02:18]}  dxc3 {[%clk 0:01:41]} 11. exd5 {[%clk 0:02:13]}  exd5 {[%clk 0:01:31]} 12. Qxd5 {[%clk 0:02:09]}  O-O {[%clk 0:01:30]} 13. Bd3 {[%clk 0:02:06]}  Nc6 {[%clk 0:01:13]} 14. O-O {[%clk 0:02:04]}  Be6 {[%clk 0:01:01]} 15. Qb5 {[%clk 0:01:50]}  Qd4+ {[%clk 0:00:52]} 16. Kh1 {[%clk 0:01:46]}  Nxe5 {[%clk 0:00:41]} 17. Rf4 {[%clk 0:01:02]}  Qd6 {[%clk 0:00:36]} 18. a4 {[%clk 0:01:02]}  Nxd3 {[%clk 0:00:29]} 19. Qxd3 {[%clk 0:00:57]}  Qc7 {[%clk 0:00:24]} 20. Rd4 {[%clk 0:00:48]}  Rad8 {[%clk 0:00:20]} 21. Bg5 {[%clk 0:00:32]}  Rxd4 {[%clk 0:00:17]} 22. Qxd4 {[%clk 0:00:33]}  f6 {[%clk 0:00:18]} 23. Bf4 {[%clk 0:00:32]}  Qc6 {[%clk 0:00:16]} 24. Qd6 {[%clk 0:00:30]}  Qxd6 {[%clk 0:00:15]} 25. Bxd6 {[%clk 0:00:31]}  Rd8 {[%clk 0:00:14]} 26. Bf4 {[%clk 0:00:26]}  Rd4 {[%clk 0:00:13]} 27. Be3 {[%clk 0:00:24]}  Rb4 {[%clk 0:00:11]} 28. Kg1 {[%clk 0:00:20]}  Rb2 {[%clk 0:00:11]} 29. Rc1 {[%clk 0:00:19]}  b6 {[%clk 0:00:09]} 30. Bd4 {[%clk 0:00:19]}  Rb4 {[%clk 0:00:08]} 31. Bxc3 {[%clk 0:00:19]}  Rxa4 {[%clk 0:00:08]} 32. Bd2 {[%clk 0:00:18]}  Ra2 {[%clk 0:00:08]} 33. Kf2 {[%clk 0:00:18]}  b5 {[%clk 0:00:07]} 34. Ke3 {[%clk 0:00:18]}  a5 {[%clk 0:00:07]} 35. c3 {[%clk 0:00:18]}  Bc4 {[%clk 0:00:06]} 36. Ne4 {[%clk 0:00:16]}  a4 {[%clk 0:00:05]} 37. Nd6 {[%clk 0:00:15]}  h5 {[%clk 0:00:04]} 38. Nxc4 {[%clk 0:00:15]}  bxc4 {[%clk 0:00:05]} 39. g3 {[%clk 0:00:16]}  g5 {[%clk 0:00:05]} 40. Rb1 {[%clk 0:00:14]}  a3 {[%clk 0:00:05]} 41. Rb4 {[%clk 0:00:12]}  Rb2 {[%clk 0:00:04]} 42. Rxc4 {[%clk 0:00:10]}  a2 {[%clk 0:00:04]} 43. Ra4 {[%clk 0:00:11]}  Kf7 {[%clk 0:00:05]} 44. c4 {[%clk 0:00:10]}  Ke6 {[%clk 0:00:05]} 45. h4 {[%clk 0:00:10]}  gxh4 {[%clk 0:00:04]} 46. gxh4 {[%clk 0:00:11]}  f5 {[%clk 0:00:04]} 47. Bc3 {[%clk 0:00:11]}  Rh2 {[%clk 0:00:03]} 48. Kd3 {[%clk 0:00:08]}  f4 {[%clk 0:00:02]} 49. Bd2 {[%clk 0:00:09]}  Rh3+ {[%clk 0:00:01]} 50. Kc2 {[%clk 0:00:08]}  Rxh4 {[%clk 0:00:02]} 51. Rxa2 {[%clk 0:00:08]}  f3 {[%clk 0:00:03]} 52. c5 {[%clk 0:00:07]}  Rc4+ {[%clk 0:00:03]} 53. Kd3 {[%clk 0:00:07]}  Rxc5 {[%clk 0:00:03]} 54. Ke3 {[%clk 0:00:08]}  Rf5 {[%clk 0:00:04]} 55. Kf2 {[%clk 0:00:08]}  h4 {[%clk 0:00:04]} 56. Be3 {[%clk 0:00:08]}  h3 {[%clk 0:00:04]} 57. Ra1 {[%clk 0:00:08]}  h2 {[%clk 0:00:05]} 58. Rh1 {[%clk 0:00:09]}  Rh5 {[%clk 0:00:04]} 59. Kxf3 {[%clk 0:00:09]}  Kf5 {[%clk 0:00:05]} 60. Bf2 {[%clk 0:00:09]}  Rh3+ {[%clk 0:00:05]} 61. Bg3 {[%clk 0:00:09]}  Kg5 {[%clk 0:00:04]} 62. Kg2 {[%clk 0:00:09]}  Rh5 {[%clk 0:00:04]} 63. Bxh2 {[%clk 0:00:09]}  Kg4 {[%clk 0:00:05]} 64. Rf1 {[%clk 0:00:09]}  Rf5 {[%clk 0:00:05]} 65. Re1 {[%clk 0:00:09]}  Ra5 {[%clk 0:00:04]} 66. Re4+ {[%clk 0:00:09]}  Kg5 {[%clk 0:00:04]} 67. Bg3 {[%clk 0:00:09]}  Ra2+ {[%clk 0:00:04]} 68. Bf2 {[%clk 0:00:10]}  Ra5 {[%clk 0:00:04]} 69. Re3 {[%clk 0:00:10]}  Rf5 {[%clk 0:00:04]} 70. Kg3 {[%clk 0:00:10]}  Rb5 {[%clk 0:00:04]} 71. Re4 {[%clk 0:00:10]}  Rb3+ {[%clk 0:00:04]} 72. Be3+ {[%clk 0:00:10]}  Kf5 {[%clk 0:00:03]} 73. Kf3 {[%clk 0:00:11]}  Rb1 {[%clk 0:00:02]} 74. Rf4+ {[%clk 0:00:11]}  Ke5 {[%clk 0:00:03]} 75. Rh4 {[%clk 0:00:11]}  Rf1+ {[%clk 0:00:02]} 76. Ke2 {[%clk 0:00:12]}  Rf8 {[%clk 0:00:03]} 77. Kd3 {[%clk 0:00:12]}  Kd5 {[%clk 0:00:03]} 78. Rh5+ {[%clk 0:00:11]}  Kc6 {[%clk 0:00:03]} 79. Kc4 {[%clk 0:00:11]}  Re8 {[%clk 0:00:02]} 80. Rh6+ {[%clk 0:00:10]}  Kd7 {[%clk 0:00:02]} 81. Bd4 {[%clk 0:00:10]}  Re6 {[%clk 0:00:03]} 82. Rh7+ {[%clk 0:00:09]}  Re7 {[%clk 0:00:03]} 83. Rh5 {[%clk 0:00:09]}  Re6 {[%clk 0:00:04]} 84. Kd5 {[%clk 0:00:08]}  Rd6+ {[%clk 0:00:04]} 85. Kc4 {[%clk 0:00:09]}  Rc6+ {[%clk 0:00:05]} 86. Bc5 {[%clk 0:00:09]}  Rg6 {[%clk 0:00:04]} 87. Kd5 {[%clk 0:00:08]}  Kc7 {[%clk 0:00:04]} 88. Rh7+ {[%clk 0:00:08]}  Kb8 {[%clk 0:00:04]} 89. Kc4 {[%clk 0:00:08]}  Ra6 {[%clk 0:00:03]} 90. Kb5 {[%clk 0:00:08]}  Rg6 {[%clk 0:00:03]} 91. Bb6 {[%clk 0:00:07]}  Kc8 {[%clk 0:00:02]} 92. Kc5 {[%clk 0:00:07]}  Kb8 {[%clk 0:00:02]} 93. Bc7+ {[%clk 0:00:07]}  Kb7 {[%clk 0:00:02]} 94. Bb6+ {[%clk 0:00:07]}  Kb8 {[%clk 0:00:02]} 95. Bc7+ {[%clk 0:00:05]}  Kb7 {[%clk 0:00:03]} 96. Bb6+ {[%clk 0:00:05]}  Kb8 {[%clk 0:00:03]} 1/2-1/2


[Site "https://www.chess.com"]

[Event "Titled Tuesday Blitz April 19 Late 2022"]
[White "Vovk, Orest"]
[Black "Rosen, Eric"]
[WhiteFideId "14113490"]
[BlackFideId "2032562"]
[WhiteElo "2203"]
[BlackElo "2362"]
[Result "0-1"]
[Round "05"]
[TimeControl "180+1"]
[Date "2022.04.19"]
[WhiteClock "0:00:08"]
[BlackClock "0:00:07"]

1. h4 {[%clk 0:02:59]}  e5 {[%clk 0:02:55]} 2. h5 {[%clk 0:02:58]}  d5 {[%clk 0:02:46]} 3. h6 {[%clk 0:02:57]}  Nxh6 {[%clk 0:02:46]} 4. d4 {[%clk 0:02:56]}  Nc6 {[%clk 0:02:41]} 5. Bxh6 {[%clk 0:02:56]}  gxh6 {[%clk 0:02:41]} 6. dxe5 {[%clk 0:02:56]}  Nxe5 {[%clk 0:02:42]} 7. Nf3 {[%clk 0:02:56]}  Bg7 {[%clk 0:02:37]} 8. Nc3 {[%clk 0:02:46]}  Nxf3+ {[%clk 0:02:26]} 9. gxf3 {[%clk 0:02:44]}  c6 {[%clk 0:02:25]} 10. Qd3 {[%clk 0:02:42]}  Be6 {[%clk 0:02:15]} 11. O-O-O {[%clk 0:02:40]}  Qb6 {[%clk 0:01:52]} 12. e4 {[%clk 0:02:31]}  O-O-O {[%clk 0:01:51]} 13. exd5 {[%clk 0:02:28]}  Rxd5 {[%clk 0:01:43]} 14. Nxd5 {[%clk 0:02:24]}  Qxb2+ {[%clk 0:01:35]} 15. Kd2 {[%clk 0:02:24]}  cxd5 {[%clk 0:01:20]} 16. Bh3 {[%clk 0:02:21]}  Qb4+ {[%clk 0:01:16]} 17. Ke2 {[%clk 0:02:20]}  Kb8 {[%clk 0:00:57]} 18. Bxe6 {[%clk 0:02:18]}  fxe6 {[%clk 0:00:58]} 19. Rb1 {[%clk 0:02:14]}  Qd6 {[%clk 0:00:48]} 20. Qb5 {[%clk 0:02:08]}  Qc7 {[%clk 0:00:42]} 21. Rhc1 {[%clk 0:01:52]}  Rc8 {[%clk 0:00:42]} 22. Rb4 {[%clk 0:01:45]}  Bc3 {[%clk 0:00:39]} 23. Rb3 {[%clk 0:01:41]}  Ka8 {[%clk 0:00:34]} 24. Rcb1 {[%clk 0:01:35]}  b6 {[%clk 0:00:34]} 25. Qa6 {[%clk 0:01:32]}  Bd4 {[%clk 0:00:28]} 26. c3 {[%clk 0:01:28]}  Bc5 {[%clk 0:00:27]} 27. Qd3 {[%clk 0:01:18]}  Rf8 {[%clk 0:00:27]} 28. a4 {[%clk 0:01:17]}  Qe5+ {[%clk 0:00:26]} 29. Kd2 {[%clk 0:01:11]}  Qf4+ {[%clk 0:00:23]} 30. Ke2 {[%clk 0:01:09]}  Qxa4 {[%clk 0:00:22]} 31. Qxh7 {[%clk 0:01:05]}  Qc4+ {[%clk 0:00:20]} 32. Ke1 {[%clk 0:00:59]}  Qf4 {[%clk 0:00:15]} 33. Ra1 {[%clk 0:00:40]}  Rf7 {[%clk 0:00:09]} 34. Qg8+ {[%clk 0:00:37]}  Kb7 {[%clk 0:00:09]} 35. Ra2 {[%clk 0:00:14]}  Qxf3 {[%clk 0:00:09]} 36. Qg6 {[%clk 0:00:11]}  Bxf2+ {[%clk 0:00:08]} 37. Kd2 {[%clk 0:00:10]}  Be3+ {[%clk 0:00:07]} 38. Kc2 {[%clk 0:00:09]}  Qe2+ {[%clk 0:00:07]} 39. Kb1 {[%clk 0:00:08]}  Rf1# {[%clk 0:00:07]} 0-1


[Site "https://www.chess.com"]